fUST/lending_fUST_20250713
["ID","MTS","AMOUNT","RATE_DAILY","PERIOD"]
[371640339,1752375033141,-460.0,0.00020647,2]
[371640341,1752375033151,-465.21830388,0.00020647,2]
[371640343,1752375033161,-460.0,0.00020647,2]
[371640345,1752375033171,-460.0,0.00020647,2]
[371640347,1752375033180,-460.0,0.00020647,2]
[371640349,1752375033190,-460.0,0.00020647,2]
[371640351,1752375033200,-609.34,0.00020647,2]
[371640353,1752375033213,-469.72677151,0.00020647,2]
[371640355,1752375033222,-460.0,0.00020647,2]
[371640357,1752375033232,-463.30864532,0.00020647,2]
[371640359,1752375033242,-462.71783432,0.00020647,2]
[371640361,1752375033253,-460.0,0.00020647,2]
[371640363,1752375033262,-460.0,0.00020647,2]
[371640365,1752375033272,-466.75911472,0.00020647,2]
[371640367,1752375033281,-460.0,0.00020647,2]
[371640369,1752375033292,-460.0,0.00020647,2]
[371640371,1752375033302,-460.0,0.00020647,2]
[371640373,1752375033311,-528.86115071,0.00020647,2]
[371640375,1752375033324,-460.0,0.00020647,2]
[371640377,1752375033334,-460.0,0.00020647,2]
[371640379,1752375033344,-460.0,0.00020647,2]
[371640381,1752375033355,-464.87267364,0.00020647,2]
[371640383,1752375033366,-460.0,0.00020647,2]
[371640385,1752375033375,-460.0,0.00020647,2]
[371640387,1752375033385,-460.0,0.00020647,2]
[371640389,1752375033396,-460.0,0.00020647,2]
[371640391,1752375033406,-460.0,0.00020647,2]
[371640393,1752375033415,-460.0,0.00020647,2]
[371640395,1752375033426,-469.87496852,0.00020647,2]
[371640397,1752375033435,-460.0,0.00020647,2]
[371640399,1752375033445,-460.0,0.00020647,2]
[371640401,1752375033455,-466.57040158,0.00020647,2]
[371640403,1752375033464,-466.55252679,0.00020647,2]
[371640405,1752375033474,-460.0,0.00020647,2]
[371640407,1752375033484,-460.0,0.00020647,2]
[371640409,1752375033494,-460.0,0.00020647,2]
[371640410,1752375033505,-109.36853217,0.00020647,2]
[371640411,1752375033519,-171.75521201,0.00020647,2]
[371640412,1752375033529,-392.87588629,0.00020647,2]
[371640413,1752375033543,-67.12411371,0.00020647,2]
[371640414,1752375033554,-460.0,0.00020647,2]
[371640415,1752375033564,-466.57013133,0.00020647,2]
[371640416,1752375033575,-460.0,0.00020647,2]
[371640417,1752375033585,-461.59381483,0.00020647,2]
[371640418,1752375033595,-462.99656138,0.00020647,2]
[371640419,1752375033605,-9318.5506153,0.00020648,2]
[371640420,1752375033618,-10368.6682575,0.00020648,2]
[371640421,1752375033628,-352.369,0.00020659,2]
[371640423,1752375033638,-207.4,0.00020807,2]
[371640425,1752375033648,-151.0,0.00020807,2]
[371640427,1752375033658,-151.0,0.00020807,2]
[371640429,1752375033668,-151.0,0.00020807,2]
[371640431,1752375033677,-153.27103239,0.00020807,2]
[371640433,1752375033687,-151.0,0.00020807,2]
[371640435,1752375033697,-157.69172357,0.00020807,2]
[371640436,1752375033707,-8257.71469692,0.0002081,2]
[371640439,1752375033716,-4032.43874011,0.0002081,10]
[371640441,1752375033738,-702.93125989,0.0002081,10]
[371640443,1752375033748,-356.73033942,0.0002082,2]
[371640445,1752375033758,-460.0,0.0002082,2]
[371640447,1752375033767,-461.81037093,0.0002082,2]
[371640449,1752375033777,-462.81937134,0.0002082,2]
[371640451,1752375033788,-460.0,0.0002082,2]
[371640453,1752375033798,-460.0,0.0002082,2]
[371640455,1752375033809,-462.02477405,0.0002082,2]
[371640457,1752375033819,-461.18465753,0.0002082,2]
[371640459,1752375033829,-460.0,0.0002082,2]
[371640460,1752375033838,-461.36665551,0.0002082,2]
[371640461,1752375033848,-460.0,0.0002082,2]
[371640462,1752375033857,-600.71008213,0.0002082,2]
[371640463,1752375033867,-461.764059,0.0002082,2]
[371640464,1752375033877,-462.48262276,0.0002082,2]
[371640465,1752375033887,-606.67266639,0.0002082,2]
[371640466,1752375033896,-460.0,0.0002082,2]
[371640467,1752375033906,-460.0,0.0002082,2]
[371640468,1752375033916,-461.0044925,0.0002082,2]
[371640469,1752375033925,-460.0,0.0002082,2]
[371640470,1752375033935,-460.0,0.0002082,2]
[371640471,1752375033945,-460.0,0.0002082,2]
[371640472,1752375033956,-245.04428866,0.0002082,2]
[371640473,1752375033966,-460.0,0.0002082,2]
[371640474,1752375033976,-461.30153189,0.0002082,2]
[371640475,1752375033986,-461.38711093,0.0002082,2]
[371640476,1752375033996,-449.29721894,0.0002082,2]
[371640477,1752375034005,-460.0,0.0002082,2]
[371640478,1752375034015,-461.18976934,0.0002082,2]
[371640479,1752375034026,-460.0,0.0002082,2]
[371640480,1752375034036,-460.99909339,0.0002082,2]
[371640481,1752375034046,-391.75985124,0.0002082,2]
[371640482,1752375034055,-462.01319069,0.0002082,2]
[371640483,1752375034065,-462.2672064,0.0002082,2]
[371640484,1752375034075,-461.84016934,0.0002082,2]
[371640485,1752375034084,-460.0,0.0002082,2]
[371640486,1752375034094,-460.0,0.0002082,2]
[371640487,1752375034104,-460.95140321,0.0002082,2]
[371640488,1752375034113,-589.82185982,0.0002082,2]
[371640489,1752375034123,-461.19739931,0.0002082,2]
[371640490,1752375034132,-462.37872973,0.0002082,2]
[371640491,1752375034141,-460.67616531,0.0002082,2]
[371640492,1752375034151,-460.0,0.0002082,2]
[371640493,1752375034160,-460.9242463,0.0002082,2]
[371640494,1752375034170,-462.06262068,0.0002082,2]
[371640495,1752375034180,-464.48636648,0.0002082,2]
[371640496,1752375034189,-461.17260961,0.0002082,2]
[371640497,1752375034199,-460.0,0.0002082,2]
[371640498,1752375034210,-170.65289612,0.0002082,2]
[371640499,1752375034224,-460.0,0.0002082,2]
[371640500,1752375034234,-460.96697304,0.0002082,2]
[371640501,1752375034383,-546.05439461,0.0002082,2]
[371640502,1752375034393,-460.0,0.0002082,2]
[371640503,1752375034403,-460.0,0.0002082,2]
[371640504,1752375034413,-460.0,0.0002082,2]
[371640505,1752375034423,-287.46170352,0.0002082,2]
[371640506,1752375034433,-244.04180512,0.0002082,2]
[371640507,1752375034443,-460.0,0.0002082,2]
[371640508,1752375034453,-498.92898016,0.0002082,2]
[371640509,1752375034463,-460.0,0.0002082,2]
[371640510,1752375034473,-160.88477815,0.0002082,2]
[371640511,1752375034486,-300.51422943,0.0002082,2]
[371640512,1752375034496,-286.47323787,0.0002082,2]
[371640531,1752375038044,-460.95713127,0.00020647,2]
[371640533,1752375038054,-460.0,0.00020647,2]
[371640535,1752375038064,-173.52676213,0.0002082,2]
[371640537,1752375038074,-461.58996391,0.0002082,2]
[371640539,1752375038083,-460.0,0.0002082,2]
[371640541,1752375038093,-460.44920559,0.0002082,2]
[371640544,1752375038103,-462.82474694,0.0002082,2]
[371640546,1752375038112,-460.0,0.0002082,2]
[371640548,1752375038122,-460.87484075,0.0002082,2]
[371640549,1752375038131,-460.0,0.0002082,2]
[371640552,1752375038142,-460.0,0.0002082,2]
[371640554,1752375038155,-460.0,0.0002082,2]
[371640556,1752375038165,-460.0,0.0002082,2]
[371640558,1752375038174,-462.967335,0.0002082,2]
[371640560,1752375038184,-401.04470229,0.0002082,2]
[371640562,1752375038193,-466.98806356,0.0002082,2]
[371640564,1752375038203,-462.55623721,0.0002082,2]
[371640565,1752375038215,-460.0,0.0002082,2]
[371640567,1752375038225,-464.91124458,0.0002082,2]
[371640570,1752375038235,-461.4675,0.0002082,2]
[371640571,1752375038245,-449.23334992,0.0002082,2]
[371640574,1752375038265,-1009.69807643,0.0002082,2]
[371640576,1752375038278,-460.0,0.0002082,2]
[371640580,1752375038290,-178.41508813,0.0002082,2]
[371640587,1752375038312,-257.3189741,0.0002082,2]
[371640590,1752375038324,-24.26593777,0.0002082,2]
[371640593,1752375038333,-540.90472558,0.0002082,2]
[371640596,1752375038344,-351.0220459,0.0002082,2]
[371640599,1752375038353,-460.0,0.0002082,2]
[371640601,1752375038363,-460.0,0.0002082,2]
[371640603,1752375038372,-464.75540929,0.0002082,2]
[371640605,1752375038382,-460.0,0.0002082,2]
[371640607,1752375038391,-344.86490665,0.0002082,2]
[371640610,1752375038403,-117.29580357,0.0002082,2]
[371640612,1752375038412,-163.02954002,0.0002082,2]
[371641138,1752375046307,-460.0,0.00020647,2]
[371641139,1752375046319,-502.0,0.0002081,10]
[371641163,1752375211676,260.97718,0.00013699,2]
[371641165,1752375558822,500.0,0.000273,120]
[371641166,1752375575449,500.0,0.000273,120]
[371641198,1752376220569,273.971446,0.00013699,2]
[371641230,1752376232303,-160.0,0.00018151,2]
[371641231,1752376232313,-540.94,0.00018151,2]
[371641232,1752376232328,-916.08,0.00018151,2]
[371641235,1752376232359,-281.6496034,0.00018151,2]
[371641237,1752376232369,-16.60858912,0.00019178,2]
[371641240,1752376232381,-153.91420388,0.00019178,2]
[371641242,1752376232390,-511.86793077,0.00019889,2]
[371641244,1752376232400,-500.0,0.00019973,2]
[371641246,1752376232409,-335.41048654,0.00019973,2]
[371641248,1752376232419,-500.0,0.00019973,2]
[371641250,1752376232428,-194.0,0.00019987,2]
[371641252,1752376232439,-300.0,0.00019987,2]
[371641254,1752376232449,-300.0,0.00019987,2]
[371641256,1752376232459,-300.0,0.00019987,2]
[371641258,1752376232469,-460.0,0.00019988,2]
[371641260,1752376232479,-460.0,0.00019988,2]
[371641262,1752376232488,-529.04763113,0.00019988,2]
[371641263,1752376232498,-460.0,0.00019988,2]
[371641265,1752376232507,-460.0,0.00019988,2]
[371641266,1752376232518,-460.0,0.00019988,2]
[371641267,1752376232531,-460.0,0.00019989,2]
[371641268,1752376232544,-460.0,0.00019989,2]
[371641269,1752376232554,-1005.43669484,0.00019989,2]
[371641270,1752376232564,-582.66197354,0.00019989,2]
[371641271,1752376232575,-460.0,0.00019989,2]
[371641272,1752376232586,-462.90114718,0.00019989,2]
[371641273,1752376232595,-460.0,0.00019989,2]
[371641274,1752376232605,-460.0,0.00019989,2]
[371641275,1752376232615,-460.0,0.00019989,2]
[371641276,1752376232625,-455.10942341,0.00019989,2]
[371641277,1752376232634,-463.4496975,0.00019989,2]
[371641278,1752376232644,-460.0,0.00019989,2]
[371641279,1752376232654,-460.0,0.00019989,2]
[371641280,1752376232663,-460.0,0.00019989,2]
[371641281,1752376232673,-255.78671657,0.00019989,2]
[371641282,1752376232683,-460.0,0.00019989,2]
[371641283,1752376232693,-462.85529485,0.00019989,2]
[371641284,1752376232702,-460.0,0.00019989,2]
[371641285,1752376232712,-460.0,0.00019989,2]
[371641286,1752376232722,-462.1310623,0.00019989,2]
[371641287,1752376232732,-461.52097056,0.00019989,2]
[371641288,1752376232742,-460.0,0.00019989,2]
[371641289,1752376232752,-460.0,0.00019989,2]
[371641290,1752376232762,-460.0,0.00019989,2]
[371641291,1752376232771,-460.0,0.00019989,2]
[371641292,1752376232781,-460.0,0.00019989,2]
[371641293,1752376232790,-460.0,0.00019989,2]
[371641294,1752376232951,-460.0,0.00019989,2]
[371641295,1752376232961,-460.0,0.00019989,2]
[371641296,1752376232971,-1286.98,0.00019989,2]
[371641297,1752376232980,-705.26,0.00019989,2]
[371641298,1752376232990,-231.05412282,0.00019989,2]
[371641299,1752376233000,-464.01599346,0.00019989,2]
[371641300,1752376233009,-507.84854965,0.00019989,2]
[371641301,1752376233019,-467.31397944,0.00019989,2]
[371641302,1752376233029,-467.31397944,0.00019989,2]
[371641303,1752376233039,-461.91978592,0.00019989,2]
[371641304,1752376233049,-470.91984795,0.00019989,2]
[371641305,1752376233058,-1033.09,0.00019989,2]
[371641306,1752376233068,-483.27040599,0.00019989,2]
[371641307,1752376233079,-460.0,0.00019989,2]
[371641308,1752376233089,-460.0,0.00019989,2]
[371641309,1752376233099,-460.0,0.00019989,2]
[371641310,1752376233109,-461.72167127,0.00019989,2]
[371641311,1752376233118,-460.0,0.00019989,2]
[371641312,1752376233127,-462.23356984,0.00019989,2]
[371641313,1752376233137,-460.0,0.00019989,2]
[371641314,1752376233147,-460.0,0.00019989,2]
[371641315,1752376233158,-460.0,0.00019989,2]
[371641316,1752376233167,-461.5569443,0.00019989,2]
[371641317,1752376233178,-786.43,0.00019989,2]
[371641318,1752376233188,-460.0,0.00019989,2]
[371641319,1752376233198,-460.0,0.00019989,2]
[371641320,1752376233208,-460.0,0.00019989,2]
[371641321,1752376233218,-460.0,0.00019989,2]
[371641322,1752376233228,-460.0,0.00019989,2]
[371641323,1752376233238,-460.0,0.00019989,2]
[371641324,1752376233248,-460.0,0.00019989,2]
[371641325,1752376233258,-460.0,0.00019989,2]
[371641326,1752376233268,-460.0,0.00019989,2]
[371641327,1752376233278,-460.0,0.00019989,2]
[371641328,1752376233288,-460.0,0.00019989,2]
[371641329,1752376233297,-460.0,0.00019989,2]
[371641330,1752376233307,-332.37923428,0.00019989,2]
[371641331,1752376233317,-482.72598171,0.00019989,2]
[371641332,1752376233326,-460.0,0.00019989,2]
[371641333,1752376233335,-4700.87417044,0.00019989,2]
[371641334,1752376233345,-93050.74076405,0.0001999,2]
[371641335,1752376233355,-157.479622,0.0002,2]
[371641336,1752376233365,-273.971446,0.00020187,2]
[371641337,1752376233374,-460.0,0.00020262,2]
[371641338,1752376233384,-465.7777132,0.00020262,2]
[371641339,1752376233394,-460.0,0.00020262,2]
[371641340,1752376233404,-454.58576828,0.00020262,2]
[371641341,1752376233415,-460.0,0.00020263,2]
[371641342,1752376233425,-462.63270543,0.00020263,2]
[371641343,1752376233435,-463.46755701,0.00020263,2]
[371641344,1752376233445,-460.0,0.00020263,2]
[371641345,1752376233455,-460.0,0.00020263,2]
[371641346,1752376233465,-460.0,0.00020263,2]
[371641347,1752376233474,-460.0,0.00020263,2]
[371641348,1752376233484,-460.0,0.00020263,2]
[371641349,1752376233494,-468.17206017,0.00020263,2]
[371641350,1752376233504,-462.81918831,0.00020263,2]
[371641351,1752376233514,-460.0,0.00020263,2]
[371641352,1752376233524,-467.71585413,0.00020263,2]
[371641353,1752376233537,-465.50062457,0.00020263,2]
[371641354,1752376233547,-471.49097598,0.00020263,2]
[371641355,1752376233557,-460.0,0.00020263,2]
[371641356,1752376233567,-301.3200484,0.00020263,2]
[371641357,1752376233579,-1286.98,0.00020263,2]
[371641358,1752376233589,-705.26,0.00020263,2]
[371641359,1752376233599,-1033.09,0.00020263,2]
[371641360,1752376233609,-460.0,0.00020263,2]
[371641361,1752376233620,-460.0,0.00020263,2]
[371641362,1752376233631,-460.0,0.00020263,2]
[371641363,1752376233642,-460.0,0.00020263,2]
[371641364,1752376233652,-786.43,0.00020263,2]
[371641365,1752376233662,-480.64048442,0.00020263,2]
[371641366,1752376233674,-410.49342821,0.00020263,2]
[371641367,1752376233684,-460.0,0.00020263,2]
[371641368,1752376233694,-460.0,0.00020263,2]
[371641369,1752376233704,-460.0,0.00020263,2]
[371641370,1752376233713,-460.0,0.00020263,2]
[371641371,1752376233723,-460.0,0.00020263,2]
[371641372,1752376233734,-460.0,0.00020263,2]
[371641373,1752376233744,-460.0,0.00020263,2]
[371641374,1752376233754,-460.0,0.00020263,2]
[371641375,1752376233764,-460.0,0.00020263,2]
[371641376,1752376233775,-1000.0,0.00020521,2]
[371641377,1752376233787,-932.9273221,0.00020521,2]
[371641378,1752376233796,-152.68,0.00020525,3]
[371641379,1752376233807,-458.04,0.00020525,3]
[371641380,1752376233818,-4128.85734846,0.00020535,2]
[371641381,1752376233829,-3501.33062034,0.00020535,2]
[371641382,1752376233842,-207.4,0.00020535,2]
[371641383,1752376233853,-155206.55458196,0.00020536,2]
[371641384,1752376233867,-47941.83654438,0.00020536,2]
[371641396,1752376238402,-460.0,0.00019989,2]
[371641398,1752376238414,-719.74,0.00019989,2]
[371641400,1752376238424,-1179.74,0.00020263,2]
[371641402,1752376238434,-147.7998617,0.00020484,2]
[371641404,1752376238447,-56.15672497,0.00020484,2]
[371641406,1752376238457,-171.13522183,0.00020535,2]
[371641408,1752376238466,-500.0,0.00020535,2]
[371641410,1752376238476,-500.0,0.00020535,2]
[371641412,1752376238485,-500.0,0.00020535,2]
[371641414,1752376238495,-500.0,0.00020535,2]
[371641416,1752376238504,-500.0,0.00020535,2]
[371641418,1752376238513,-500.0,0.00020535,2]
[371641420,1752376238523,-268.33956513,0.00020535,2]
[371641422,1752376238539,-231.66043487,0.00020535,2]
[371641424,1752376238549,-500.0,0.00020535,2]
[371641426,1752376238559,-500.0,0.00020535,2]
[371641428,1752376238569,-500.0,0.00020535,2]
[371641430,1752376238579,-329.91326549,0.00020535,2]
[371641432,1752376238592,-170.08673451,0.00020535,2]
[371641434,1752376238601,-299.8735356,0.00020535,2]
[371641436,1752376238612,-174.37148643,0.00020535,2]
[371641439,1752376238624,-325.62851357,0.00020535,2]
[371641441,1752376238633,-500.0,0.00020535,2]
[371641443,1752376238643,-225.70643756,0.00020535,2]
[371641446,1752376238671,-274.29356244,0.00020535,2]
[371641448,1752376238681,-43.96643756,0.00020535,2]
[371641452,1752376238709,-456.03356244,0.00020535,2]
[371641454,1752376238718,-500.0,0.00020535,2]
[371641456,1752376238727,-500.0,0.00020535,2]
[371641458,1752376238737,-500.0,0.00020535,2]
[371641460,1752376238748,-305.19478204,0.00020535,2]
[371641631,1752376240442,-460.0,0.00019989,2]
[371641632,1752376240451,-460.0,0.00020263,2]
[371641633,1752376240461,-194.80521796,0.00020535,2]
[371641635,1752376240470,-500.0,0.00020535,2]
[371641636,1752376240479,-468.07478204,0.00020535,2]
[371641637,1752376240491,-31.92521796,0.00020535,2]
[371641638,1752376240501,-500.0,0.00020535,2]
[371641639,1752376240510,-500.0,0.00020535,2]
[371641640,1752376240519,-500.0,0.00020535,2]
[371641641,1752376240529,-500.0,0.00020535,2]
[371641642,1752376240540,-406.56281582,0.00020535,2]
[371641643,1752376240549,-500.0,0.00020535,2]
[371641644,1752376240558,-500.0,0.00020535,2]
[371641645,1752376240566,-500.0,0.00020535,2]
[371641646,1752376240575,-500.0,0.00020535,2]
[371641647,1752376240587,-500.0,0.00020535,2]
[371641648,1752376240596,-137563.94643831,0.00020536,2]
[371641649,1752376240609,-834.40444356,0.00020536,2]
[371641650,1752376240620,-383.112,0.00020536,2]
[371641651,1752376240631,-10787.74021055,0.00020536,2]
[371641652,1752376240642,-440.0,0.00020536,2]
[371641862,1752376243418,-500.0,0.00020535,2]
[371641863,1752376243427,-500.0,0.00020535,2]
[371641864,1752376243437,-500.0,0.00020535,2]
[371641865,1752376243446,-354.51337051,0.00020535,2]
[371641866,1752376243455,-500.0,0.00020535,2]
[371641867,1752376243464,-500.0,0.00020535,2]
[371641868,1752376243473,-284.65149293,0.00020535,2]
[371641869,1752376243492,-256.59269082,0.00020535,2]
[371641870,1752376243502,-500.0,0.00020535,2]
[371641871,1752376243511,-500.0,0.00020535,2]
[371641872,1752376243519,-392.774526,0.00020535,2]
[371641873,1752376243531,-107.225474,0.00020535,2]
[371641874,1752376243543,-500.0,0.00020535,2]
[371641876,1752376243552,-500.0,0.00020535,2]
[371641878,1752376243561,-500.0,0.00020535,2]
[371641880,1752376243571,-500.0,0.00020535,2]
[371641882,1752376243580,-500.0,0.00020535,2]
[371641884,1752376243591,-500.0,0.00020535,2]
[371641886,1752376243600,-469.07255715,0.00020535,2]
[371641888,1752376243609,-191.58515652,0.00020535,2]
[371641889,1752376243619,-500.0,0.00020535,2]
[371641891,1752376243629,-156.91680625,0.00020535,2]
[371641894,1752376243645,-343.08319375,0.00020535,2]
[371641896,1752376243654,-500.0,0.00020535,2]
[371641898,1752376243663,-500.0,0.00020535,2]
[371641900,1752376243673,-7864.9079077,0.00020536,2]
[371642203,1752376246573,-460.0,0.00019988,2]
[371642205,1752376246585,-947.0,0.00019989,2]
[371642207,1752376246595,-947.0,0.00020263,2]
[371642209,1752376246605,-24662.04457513,0.00020536,2]
[371642212,1752376246628,-5333.18631998,0.00020536,2]
[371642591,1752376390206,669.9,0.00027397,120]
[371642592,1752376550985,507.51336551,0.00022986,30]
[371642593,1752377137097,269.0,0.0002739,120]
[371642617,1752377382985,271.315271,0.00013699,2]
[371642628,1752377432478,-1750.0,0.00018,2]
[371642630,1752377432487,-1750.0,0.00018,2]
[371642632,1752377432497,-1750.0,0.00018,2]
[371642634,1752377432507,-1750.0,0.00018,2]
[371642636,1752377432516,-1750.0,0.00018,2]
[371642638,1752377432526,-1750.0,0.00018,2]
[371642640,1752377432535,-668.25174325,0.00018,2]
[371642641,1752377432546,-160.0,0.00018913,2]
[371642642,1752377432557,-1117.9972665,0.00018914,2]
[371642643,1752377432567,-447.88443938,0.00019788,2]
[371642644,1752377432577,-501.20443078,0.00019873,2]
[371642646,1752377432586,-510.45563927,0.00019873,2]
[371642648,1752377432595,-305.36,0.0001988,3]
[371642650,1752377432605,-300.0,0.00019887,2]
[371642652,1752377432616,-990.93152694,0.00019888,10]
[371642654,1752377432627,-11675.06847306,0.00019888,10]
[371642656,1752377432636,-460.0,0.00019888,2]
[371642657,1752377432645,-460.0,0.00019888,2]
[371642658,1752377432654,-460.0,0.00019888,2]
[371642660,1752377432663,-462.2265651,0.00019888,2]
[371642662,1752377432672,-460.0,0.00019888,2]
[371642664,1752377432681,-461.31588009,0.00019888,2]
[371642665,1752377432690,-460.0,0.00019888,2]
[371642666,1752377432699,-460.0,0.00019888,2]
[371642667,1752377432708,-460.0,0.00019888,2]
[371642668,1752377432717,-460.0,0.00019888,2]
[371642669,1752377432726,-500.0,0.00019888,2]
[371642670,1752377432735,-460.0,0.00019888,2]
[371642671,1752377432744,-460.0,0.00019888,2]
[371642672,1752377432753,-464.75292804,0.00019888,2]
[371642673,1752377432762,-464.56813705,0.00019888,2]
[371642674,1752377432771,-465.79572776,0.00019888,2]
[371642675,1752377432779,-473.05482252,0.00019888,2]
[371642676,1752377432926,-460.0,0.00019888,2]
[371642677,1752377432935,-462.03340171,0.00019888,2]
[371642678,1752377432946,-460.0,0.00019888,2]
[371642679,1752377432956,-460.0,0.00019888,2]
[371642680,1752377432966,-460.0,0.00019888,2]
[371642681,1752377432977,-460.0,0.00019888,2]
[371642682,1752377432987,-460.0,0.00019888,2]
[371642683,1752377433008,-462.05511914,0.00019888,2]
[371642684,1752377433029,-460.0,0.00019888,2]
[371642685,1752377433039,-461.06405802,0.00019888,2]
[371642686,1752377433048,-465.78318938,0.00019888,2]
[371642687,1752377433058,-461.83314639,0.00019888,2]
[371642688,1752377433067,-460.0,0.00019888,2]
[371642689,1752377433077,-460.0,0.00019888,2]
[371642690,1752377433087,-460.0,0.00019888,2]
[371642691,1752377433097,-460.0,0.00019888,2]
[371642692,1752377433107,-462.92167506,0.00019888,2]
[371642693,1752377433116,-460.0,0.00019888,2]
[371642694,1752377433127,-460.0,0.00019888,2]
[371642695,1752377433138,-460.0,0.00019888,2]
[371642696,1752377433148,-461.51554214,0.00019888,2]
[371642697,1752377433158,-460.0,0.00019888,2]
[371642698,1752377433168,-462.23346172,0.00019888,2]
[371642699,1752377433178,-500.0,0.00019888,2]
[371642700,1752377433188,-460.0,0.00019888,2]
[371642701,1752377433199,-463.09478868,0.00019888,2]
[371642702,1752377433209,-460.0,0.00019888,2]
[371642703,1752377433218,-460.0,0.00019888,2]
[371642704,1752377433228,-460.0,0.00019888,2]
[371642705,1752377433237,-460.0,0.00019888,2]
[371642706,1752377433246,-460.0,0.00019888,2]
[371642707,1752377433256,-234.68605086,0.00019888,2]
[371642708,1752377433265,-461.45449595,0.00019888,2]
[371642709,1752377433275,-460.0,0.00019888,2]
[371642710,1752377433284,-460.0,0.00019888,2]
[371642711,1752377433294,-646.49,0.00019888,2]
[371642712,1752377433304,-460.0,0.00019888,2]
[371642713,1752377433313,-460.0,0.00019888,2]
[371642714,1752377433323,-462.02640361,0.00019888,2]
[371642715,1752377433333,-460.0,0.00019888,2]
[371642716,1752377433343,-460.0,0.00019888,2]
[371642717,1752377433354,-460.0,0.00019888,2]
[371642718,1752377433364,-463.89152186,0.00019888,2]
[371642719,1752377433373,-460.0,0.00019888,2]
[371642720,1752377433383,-486.19478448,0.00019888,2]
[371642721,1752377433392,-463.14462435,0.00019888,2]
[371642722,1752377433402,-868.08,0.00019888,2]
[371642723,1752377433412,-460.0,0.00019888,2]
[371642724,1752377433422,-463.85089069,0.00019888,2]
[371642725,1752377433431,-460.0,0.00019888,2]
[371642726,1752377433441,-460.0,0.00019888,2]
[371642727,1752377433452,-946.24,0.00019888,2]
[371642728,1752377433461,-460.0,0.00019888,2]
[371642729,1752377433470,-460.0,0.00019888,2]
[371642730,1752377433480,-460.0,0.00019888,2]
[371642731,1752377433490,-460.0,0.00019888,2]
[371642732,1752377433500,-464.16531571,0.00019888,2]
[371642733,1752377433510,-460.0,0.00019888,2]
[371642734,1752377433521,-460.0,0.00019888,2]
[371642735,1752377433530,-460.0,0.00019888,2]
[371642736,1752377433540,-460.0,0.00019888,2]
[371642737,1752377433550,-476.93978428,0.00019888,2]
[371642738,1752377433559,-460.0,0.00019888,2]
[371642739,1752377433569,-461.18343826,0.00019888,2]
[371642740,1752377433579,-784.71,0.00019888,2]
[371642741,1752377433589,-460.84582896,0.00019888,2]
[371642742,1752377433599,-460.0,0.00019888,2]
[371642743,1752377433608,-460.0,0.00019888,2]
[371642744,1752377433618,-460.0,0.00019888,2]
[371642745,1752377433628,-460.0,0.00019888,2]
[371642746,1752377433639,-463.75279521,0.00019888,2]
[371642747,1752377433648,-460.0,0.00019888,2]
[371642748,1752377433657,-460.0,0.00019888,2]
[371642749,1752377433667,-460.0,0.00019888,2]
[371642750,1752377433676,-460.0,0.00019888,2]
[371642751,1752377433688,-460.0,0.00019888,2]
[371642752,1752377433699,-460.0,0.00019888,2]
[371642753,1752377433710,-638.92118897,0.00019888,2]
[371642754,1752377433720,-460.0,0.00019888,2]
[371642755,1752377433730,-460.0,0.00019888,2]
[371642756,1752377433740,-460.0,0.00019888,2]